fUSD/lending_fUSD_20251211
["ID","MTS","AMOUNT","RATE_DAILY","PERIOD"]
[398181163,1765421438252,-1023.47056,0.00017155,2]
[398181164,1765421438279,-28209.70792062,0.00017155,2]
[398181165,1765421438289,-2647.8004448,0.00017155,2]
[398181166,1765421438299,-7035.1892893,0.00017157,2]
[398181167,1765421438308,-2000.4951048,0.00017157,2]
[398181168,1765421438318,-3090.4230069,0.00017157,2]
[398181169,1765421438327,-643.1062462,0.00017157,2]
[398181170,1765421438337,-250.0,0.00017185,2]
[398181171,1765421438347,-500.0,0.00017185,2]
[398181172,1765421438356,-150.0,0.00017229,2]
[398181173,1765421438366,-150.0,0.00017229,2]
[398181174,1765421438376,-150.0,0.00017229,2]
[398181175,1765421438386,-166.66,0.00017347,2]
[398181176,1765421438395,-150.0,0.000174,2]
[398181177,1765421438406,-150.0,0.000174,2]
[398181178,1765421438416,-150.0,0.00017486,2]
[398181179,1765421438425,-150.0,0.00017486,2]
[398181181,1765421438435,-150.0,0.00017486,2]
[398181183,1765421438444,-2751.0,0.00017515,2]
[398181185,1765421438453,-253.64,0.00017528,2]
[398181187,1765421438462,-201.56881359,0.00017693,2]
[398181189,1765421438472,-201.86332106,0.00017693,2]
[398181191,1765421438481,-508.42497145,0.00017693,2]
[398181193,1765421438491,-150.0,0.000177,2]
[398181195,1765421438500,-166.66,0.00017712,2]
[398181197,1765421438509,-150.0,0.00017743,2]
[398181199,1765421438519,-150.0,0.00017743,2]
[398181200,1765421438528,-150.0,0.00017743,2]
[398181202,1765421438537,-1000.0,0.00017872,2]
[398181204,1765421438546,-500.0,0.00017873,2]
[398181205,1765421438556,-245.76,0.00017904,2]
[398181206,1765421438565,-650.57,0.00017972,2]
[398181207,1765421438575,-160.0,0.00017973,2]
[398181208,1765421438585,-460.04335831,0.00017973,2]
[398181209,1765421438594,-396.84340628,0.00017973,2]
[398181210,1765421438604,-172.08183066,0.00017973,2]
[398181211,1765421438613,-341.35138776,0.00017973,2]
[398181212,1765421438622,-501.60713495,0.00017973,2]
[398181213,1765421438632,-564.9785362,0.00017973,2]
[398181214,1765421438642,-484.63336972,0.00017973,2]
[398181215,1765421438652,-503.58863815,0.00017973,2]
[398181216,1765421438661,-502.7503041,0.00017973,2]
[398181217,1765421438670,-564.81166966,0.00017973,2]
[398181218,1765421438679,-327.96304931,0.00017973,2]
[398181219,1765421438689,-501.48972246,0.00017973,2]
[398181220,1765421438699,-502.86913908,0.00017973,2]
[398181221,1765421438708,-500.0,0.00017973,2]
[398181222,1765421438717,-500.0,0.00017973,2]
[398181223,1765421438726,-500.0,0.00017973,2]
[398181224,1765421438735,-500.0,0.00017973,2]
[398181225,1765421438745,-500.0,0.00017973,2]
[398181226,1765421438758,-500.0,0.00017973,2]
[398181227,1765421438767,-500.0,0.00017973,2]
[398181228,1765421438780,-500.0,0.00017973,2]
[398181229,1765421438791,-500.0,0.00017973,2]
[398181230,1765421438800,-500.0,0.00017973,2]
[398181231,1765421438809,-500.0,0.00017973,2]
[398181232,1765421438818,-500.0,0.00017973,2]
[398181233,1765421438827,-500.0,0.00017973,2]
[398181234,1765421438839,-375.27543066,0.00017973,2]
[398181235,1765421438849,-500.0,0.00017976,2]
[398181236,1765421438859,-500.0,0.00017976,2]
[398181237,1765421438869,-500.0,0.00017976,2]
[398181238,1765421438878,-500.0,0.00017976,2]
[398181239,1765421438887,-153.2118014,0.00017976,2]
[398181240,1765421438896,-500.0,0.00017976,2]
[398181241,1765421438905,-500.0,0.00017976,2]
[398181242,1765421438916,-500.0,0.00017976,2]
[398181243,1765421438926,-500.0,0.00017976,2]
[398181244,1765421438936,-500.0,0.00017976,2]
[398181245,1765421438945,-500.0,0.00017976,2]
[398181246,1765421438955,-500.0,0.00017976,2]
[398181247,1765421438965,-500.0,0.00017976,2]
[398181248,1765421438974,-500.0,0.00017976,2]
[398181249,1765421438983,-500.0,0.00017976,2]
[398181250,1765421438992,-500.0,0.00017976,2]
[398181251,1765421439002,-500.0,0.00017976,2]
[398181252,1765421439011,-500.0,0.00017976,2]
[398181253,1765421439019,-500.0,0.00017976,2]
[398181254,1765421439029,-500.0,0.00017976,2]
[398181255,1765421439038,-500.0,0.00017976,2]
[398181256,1765421439047,-500.0,0.00017976,2]
[398181257,1765421439056,-500.0,0.00017976,2]
[398181258,1765421439065,-500.0,0.00017976,2]
[398181259,1765421439074,-500.0,0.00017976,2]
[398181260,1765421439084,-500.0,0.00017976,2]
[398181261,1765421439093,-500.0,0.00017976,2]
[398181262,1765421439102,-500.0,0.00017976,2]
[398181263,1765421439112,-500.0,0.00017976,2]
[398181264,1765421439121,-212.75076365,0.00017976,2]
[398181265,1765421439130,-500.0,0.00017976,2]
[398181266,1765421439140,-124.65934173,0.00017976,2]
[398181267,1765421439153,-375.34065827,0.00017976,2]
[398181268,1765421439162,-266.78218216,0.00017977,2]
[398181269,1765421439249,-161.52473943,0.00017977,2]
[398181270,1765421439258,-9454.16461262,0.00017977,2]
[398181271,1765421439268,-1316.14122906,0.00017977,2]
[398181272,1765421439277,-1202.87828035,0.00017977,2]
[398181273,1765421439286,-500.0,0.00017977,2]
[398181274,1765421439296,-500.0,0.00017977,2]
[398181275,1765421439305,-500.0,0.00017977,2]
[398181276,1765421439314,-150.0,0.00017977,2]
[398181277,1765421439324,-154.02338802,0.00017977,2]
[398181278,1765421439333,-500.0,0.00017977,2]
[398181279,1765421439342,-428.0,0.00017977,2]
[398181280,1765421439350,-150.0,0.00017977,2]
[398181281,1765421439359,-150.0,0.00017977,2]
[398181282,1765421439369,-2072.33871244,0.00017977,2]
[398181283,1765421439378,-194.99999983,0.00017977,2]
[398181284,1765421439387,-656.85,0.00017986,2]
[398181285,1765421439397,-500.0,0.00017989,2]
[398181286,1765421439406,-191.61679709,0.00017989,2]
[398181287,1765421439415,-152.23894322,0.00017989,2]
[398181288,1765421439424,-150.13229995,0.00017989,2]
[398181289,1765421439433,-150.0,0.00017989,2]
[398181290,1765421439443,-152.31964302,0.00017989,2]
[398181291,1765421439452,-500.0,0.00017989,2]
[398181292,1765421439462,-500.0,0.00017989,2]
[398181293,1765421439471,-160.2763129,0.00017989,2]
[398181294,1765421439481,-150.60301114,0.00017989,2]
[398181295,1765421439490,-151.22814741,0.00017989,2]
[398181296,1765421439499,-200.88620983,0.00017989,2]
[398181297,1765421439508,-150.0,0.00017989,2]
[398181298,1765421439518,-150.0,0.00017989,2]
[398181299,1765421439529,-150.0,0.00017989,2]
[398181300,1765421439539,-150.0,0.00017989,2]
[398181301,1765421439548,-512.0,0.00017989,2]
[398181302,1765421439557,-150.0,0.00017989,2]
[398181303,1765421439566,-500.0,0.00017989,2]
[398181304,1765421439575,-150.0,0.00017989,2]
[398181305,1765421439584,-500.0,0.00017989,2]
[398181306,1765421439593,-478.0,0.00017989,2]
[398181307,1765421439602,-152.6264382,0.00017989,2]
[398181308,1765421439611,-500.0,0.00017989,2]
[398181309,1765421439620,-500.0,0.00017989,2]
[398181310,1765421439789,-500.0,0.00017989,2]
[398181311,1765421439798,-234.18558553,0.00017989,2]
[398181312,1765421439807,-500.0,0.00017989,2]
[398181313,1765421439816,-500.0,0.00017989,2]
[398181314,1765421439825,-500.0,0.00017989,2]
[398181315,1765421439833,-150.0,0.00017989,2]
[398181316,1765421439842,-500.0,0.00017989,2]
[398181317,1765421439852,-210.14200998,0.0001799,2]
[398181318,1765421439861,-210.14200998,0.0001799,2]
[398181319,1765421439870,-151.0,0.00017997,2]
[398181320,1765421439879,-650.57,0.00017999,2]
[398181321,1765421439889,-650.57,0.00017999,2]
[398181322,1765421439899,-650.57,0.00017999,2]
[398181323,1765421439908,-650.57,0.00017999,2]
[398181324,1765421439917,-650.57,0.00017999,2]
[398181325,1765421439927,-650.57,0.00017999,2]
[398181326,1765421439936,-650.57,0.00017999,2]
[398181327,1765421439944,-650.57,0.00017999,2]
[398181328,1765421439953,-650.57,0.00017999,2]
[398181330,1765421439962,-650.57,0.00017999,2]
[398181333,1765421439971,-650.57,0.00017999,2]
[398181336,1765421439981,-650.57,0.00017999,2]
[398181339,1765421439990,-650.57,0.00017999,2]
[398181340,1765421439999,-650.57,0.00017999,2]
[398181341,1765421440008,-650.57,0.00017999,2]
[398181342,1765421440018,-265.23251824,0.00017999,2]
[398181343,1765421440027,-155.88515103,0.00017999,2]
[398181344,1765421440036,-500.0,0.00017999,2]
[398181345,1765421440045,-586.94135772,0.00017999,2]
[398181346,1765421440054,-150.00000001,0.00018,2]
[398181347,1765421440063,-158.48750603,0.00018,2]
[398181348,1765421440073,-156.39811761,0.00018,2]
[398181349,1765421440082,-155.55139253,0.00018,2]
[398181350,1765421440091,-173.72857963,0.00018,2]
[398181352,1765421440101,-156.0233927,0.00018,2]
[398181354,1765421440110,-217.39322156,0.00018,2]
[398181356,1765421440119,-1000.0,0.00018,2]
[398181358,1765421440129,-436.58992594,0.00018,2]
[398181360,1765421440138,-125351.59948551,0.00018,2]
[398181364,1765421440618,-620.65888932,0.00018,2]
[398181365,1765421440703,-170141.69451381,0.00018,2]
[398181366,1765421440762,-617.05038201,0.00018,2]
[398181488,1765421443094,-500.0,0.00017973,2]
[398181489,1765421443104,-121.329991,0.00017973,2]
[398181490,1765421443115,-378.670009,0.00017973,2]
[398181491,1765421443125,-1371.38400349,0.00018,2]
[398181492,1765421443147,-735.61882319,0.00018,2]
[398181493,1765421443204,-741303.75855429,0.00018,2]
[398181494,1765421443217,-5057.14582432,0.00018,2]
[398181495,1765421443228,-789.44390463,0.00018,2]
[398181496,1765421443239,-781.47808843,0.00018,2]
[398181497,1765421443250,-35290.08792323,0.00018,2]
[398181498,1765421443261,-7894.39866846,0.00018,2]
[398181499,1765421443317,-500.0,0.00018,2]
[398181507,1765421446086,-12127.1228994,0.00018,2]
[398181508,1765421446097,-292.05041448,0.00018,2]
[398181509,1765421446154,-1273.35928114,0.00018,2]
[398181510,1765421446194,-789575.30370176,0.00018,2]
[398181511,1765421446300,-657.5104487,0.00018,2]
[398181512,1765421446355,-2700.0,0.00018,2]
[398181529,1765421761860,250.0,0.000202,30]
[398181551,1765422094313,-623.46,0.00017154,2]
[398181552,1765422094343,-295.0,0.00017154,2]
[398181553,1765422094374,-250.0,0.00017185,2]
[398181554,1765422094405,-179.94359966,0.00017193,2]
[398181555,1765422094433,-2728.62280068,0.00017214,2]
[398181556,1765422094721,-1845.95719932,0.00017214,2]
[398181557,1765422094749,-1000.0,0.000173,2]
[398181558,1765422094776,-216.51380909,0.00017578,2]
[398181559,1765422094803,-1200.0,0.00017581,2]
[398181560,1765422095018,-1917.56840453,0.00017582,2]
[398181561,1765422095045,-650.0,0.00017639,2]
[398181562,1765422095075,-300.0,0.00017639,2]
[398181563,1765422095102,-1570.04839133,0.00017779,2]
[398181564,1765422095129,-500.0,0.00017873,2]
[398181565,1765422095369,-550.0,0.00017899,2]
[398181566,1765422095396,-877.42748604,0.000179,2]
[398181567,1765422096129,-6279.16414612,0.000179,2]
[398181568,1765422096186,-4654.8578409,0.000179,2]
[398181569,1765422096227,-690.2943182,0.000179,2]
[398181570,1765422096240,-179.0263676,0.000179,2]
[398181571,1765422096254,-4475.8314733,0.000179,2]
[398181572,1765422096303,-4562.21563795,0.000179,2]
[398181573,1765422096792,-875.5787241,0.000179,2]
[398181574,1765422096803,-194.99999983,0.000179,2]
[398181575,1765422096812,-2072.33871244,0.000179,2]
[398181576,1765422096821,-327.91816934,0.00017973,2]
[398181577,1765422096830,-500.0,0.00017973,2]
[398181578,1765422096840,-151.0,0.00017989,2]
[398181579,1765422096849,-151.0,0.00017989,2]
[398181580,1765422096859,-151.0,0.00017989,2]
[398181581,1765422096869,-151.0,0.00017989,2]
[398181582,1765422097108,-151.0,0.00017989,2]
[398181583,1765422097143,-151.0,0.00017989,2]
[398181584,1765422097159,-151.0,0.00017989,2]
[398181585,1765422097168,-151.0,0.00017989,2]
[398181586,1765422097177,-258.95875634,0.00017989,2]
[398181587,1765422097202,-241.04124366,0.00017989,2]
[398181588,1765422097212,-151.0,0.00017989,2]
[398181589,1765422097222,-151.0,0.00017989,2]
[398181590,1765422097231,-500.0,0.00017989,2]
[398181591,1765422097240,-153.63110906,0.00017989,2]
[398181592,1765422097249,-151.0,0.00017989,2]
[398181593,1765422097258,-500.0,0.00017989,2]
[398181594,1765422097268,-200.0,0.00017989,2]
[398181595,1765422097277,-151.0,0.00017989,2]
[398181596,1765422097286,-500.0,0.00017989,2]
[398181597,1765422097295,-151.0,0.00017989,2]
[398181598,1765422097305,-500.0,0.00017989,2]
[398181599,1765422097314,-151.0,0.00017989,2]
[398181600,1765422097323,-500.0,0.00017989,2]
[398181601,1765422097332,-151.0,0.00017989,2]
[398181602,1765422097341,-500.0,0.00017989,2]
[398181603,1765422097351,-151.0,0.00017989,2]
[398181604,1765422097360,-500.0,0.00017989,2]
[398181605,1765422097369,-500.0,0.00017989,2]
[398181606,1765422097378,-500.0,0.00017989,2]
[398181607,1765422097388,-519.15214296,0.00017989,2]
[398181608,1765422097397,-500.0,0.00017989,2]
[398181609,1765422097406,-499.65223418,0.00017989,2]
[398181610,1765422097416,-200.0,0.00017989,2]
[398181611,1765422097425,-210.14200998,0.0001799,2]
[398181612,1765422097435,-1323.99070524,0.00017996,2]
[398181613,1765422097444,-151.0,0.00017997,2]
[398181614,1765422097454,-150.0,0.00017999,2]
[398181615,1765422097464,-143.40055492,0.00017999,2]
[398181616,1765422097523,-178.382,0.00017899,2]
[398181617,1765422097533,-3492.017,0.00017899,2]
[398181618,1765422097542,-480.05944508,0.00017999,2]
[398181619,1765422097551,-623.46,0.00017999,2]
[398181620,1765422097560,-571.23371402,0.00017999,2]
[398181621,1765422097593,-52.22628598,0.00017999,2]
[398181622,1765422097601,-623.46,0.00017999,2]
[398181623,1765422097610,-623.46,0.00017999,2]
[398181624,1765422097619,-623.46,0.00017999,2]
[398181625,1765422097629,-623.46,0.00017999,2]
[398181626,1765422097638,-623.46,0.00017999,2]
[398181627,1765422097648,-623.46,0.00017999,2]
[398181628,1765422097656,-623.46,0.00017999,2]
[398181629,1765422097666,-623.46,0.00017999,2]
[398181630,1765422097674,-397.88807607,0.00017999,2]
[398181631,1765422098401,-225.57192393,0.00017999,2]
[398181632,1765422098432,-623.46,0.00017999,2]
[398181633,1765422098463,-623.46,0.00017999,2]
[398181634,1765422098492,-623.46,0.00017999,2]
[398181635,1765422098521,-500.0,0.00017999,2]
[398181636,1765422098551,-234.18558553,0.00017999,2]
[398181637,1765422098582,-500.0,0.00017999,2]
[398181638,1765422098611,-500.0,0.00017999,2]
[398181639,1765422098639,-500.0,0.00017999,2]
[398181640,1765422098669,-150.0,0.00017999,2]
[398181641,1765422098696,-500.0,0.00017999,2]
[398181642,1765422098806,-500.0,0.00017999,2]
[398181643,1765422098834,-500.0,0.00017999,2]
[398181644,1765422098863,-500.0,0.00017999,2]
[398181645,1765422098892,-150.0,0.00017999,2]
[398181646,1765422098921,-500.0,0.00017999,2]
[398181647,1765422098950,-150.0,0.00017999,2]
[398181648,1765422098983,-154.02338802,0.00017999,2]
[398181649,1765422099014,-150.0,0.00017999,2]
[398181650,1765422099043,-500.0,0.00017999,2]
[398181651,1765422099075,-326.08240732,0.00017999,2]
[398181652,1765422099104,-500.0,0.00017999,2]
[398181653,1765422099136,-500.0,0.00017999,2]
[398181654,1765422099166,-500.0,0.00017999,2]
[398181655,1765422099275,-500.0,0.00017999,2]
[398181656,1765422099303,-500.0,0.00017999,2]
[398181657,1765422099332,-500.0,0.00017999,2]
[398181658,1765422099361,-221.27507637,0.00017999,2]
[398181659,1765422099390,-500.0,0.00017999,2]
[398181660,1765422099419,-500.0,0.00017999,2]
[398181661,1765422099449,-500.0,0.00017999,2]
[398181662,1765422099477,-575.96724035,0.00017999,2]
[398181663,1765422099504,-1000.0,0.00018,2]
[398181664,1765422099616,-436.58992594,0.00018,2]
[398181665,1765422100379,-148.46883102,0.00018,2]
[398181666,1765422100401,-436.58992594,0.00018,2]
[398181667,1765422100422,-9126.83014812,0.00018,2]
[398181668,1765422100447,-10000.01,0.00018,2]
[398181669,1765422100465,-10000.01,0.00018,2]
[398181670,1765422100498,-10000.01,0.00018,2]
[398181671,1765422104397,-10000.01,0.00018,2]
[398181672,1765422104629,-10000.01,0.00018,2]
[398181673,1765422104730,-10000.01,0.00018,2]
[398181679,1765422256221,164.0,0.00017,2]
[398181680,1765422257479,164.0,0.00017,2]
[398181683,1765422273271,164.0,0.00018,3]
[398181684,1765422280759,164.0,0.00018,3]
[398181713,1765422542273,1000.0,0.00017999,3]
[398181723,1765422632120,-8552.040682,0.0001706,2]
[398181724,1765422632131,-1200.0,0.00017145,2]
[398181725,1765422632142,-300.0,0.00017145,2]
[398181726,1765422632152,-300.0,0.00017145,2]
[398181727,1765422632166,-1859.95302778,0.00017146,2]
[398181728,1765422632177,-1171.15387376,0.00017146,2]
[398181729,1765422632187,-559.2491887,0.00017146,2]
[398181730,1765422632199,-349.27333974,0.00017146,2]
[398181731,1765422632210,-4335.08057002,0.00017146,2]
[398181732,1765422632219,-498.26333078,0.00017146,2]
[398181733,1765422632278,-944.1343704,0.00017146,2]
[398181734,1765422632288,-335.349535,0.00017146,2]
[398181735,1765422632306,-74.67276382,0.00017146,2]
[398181736,1765422632315,-200.0,0.00017187,2]
[398181737,1765422632324,-150.0,0.0001722,2]
[398181738,1765422632333,-1200.0,0.00017781,2]
[398181739,1765422632343,-500.0,0.00017873,2]
[398181740,1765422632352,-212.0,0.00017899,2]
[398181741,1765422632361,-164.0,0.000179,2]
[398181742,1765422632370,-164.0,0.000179,2]
[398181743,1765422632380,-390.19518129,0.000179,2]
[398181744,1765422632537,-164.0,0.000179,2]
[398181745,1765422632560,-8922.26325177,0.000179,2]
[398181746,1765422632570,-9269.95714184,0.000179,2]
[398181747,1765422632581,-698.43699219,0.000179,2]
[398181748,1765422632604,-493.49054065,0.000179,2]
[398181749,1765422632613,-238.21964221,0.000179,2]
[398181750,1765422632625,-260.99999986,0.000179,2]
[398181751,1765422632637,-320.0,0.000179,2]
[398181752,1765422632648,-204.44575831,0.000179,2]
[398181753,1765422632658,-200.0,0.00017909,2]
[398181754,1765422632666,-139.57424169,0.00017973,2]
[398181759,1765422638230,-329.17430464,0.00017973,2]
[398181760,1765422638244,-31.25145367,0.00017973,2]
[398181761,1765422638253,-522.27836269,0.00017973,2]
[398181762,1765422638262,-792.20900834,0.00017989,2]
[398181763,1765422638271,-1183.88,0.00017989,2]
[398181764,1765422638281,-151.0,0.00017989,2]
[398181765,1765422638290,-500.0,0.00017989,2]
[398181766,1765422638300,-151.0,0.00017989,2]
[398181767,1765422638309,-151.0,0.00017989,2]
[398181768,1765422638318,-151.0,0.00017989,2]
[398181769,1765422638328,-151.0,0.00017989,2]
[398181770,1765422638337,-151.0,0.00017989,2]
[398181771,1765422638347,-151.0,0.00017989,2]
[398181772,1765422638362,-151.0,0.00017989,2]
[398181773,1765422638372,-151.0,0.00017989,2]
[398181774,1765422638382,-151.0,0.00017989,2]
[398181775,1765422638394,-151.0,0.00017989,2]
[398181776,1765422638404,-151.0,0.00017989,2]
[398181777,1765422638415,-151.0,0.00017989,2]
[398181778,1765422638425,-500.0,0.00017989,2]
[398181779,1765422638435,-200.0,0.00017989,2]
[398181780,1765422638444,-200.0,0.00017989,2]
[398181781,1765422638454,-151.0,0.00017989,2]
[398181782,1765422638464,-500.0,0.00017989,2]
[398181783,1765422638473,-500.0,0.00017989,2]
[398181784,1765422638483,-151.0,0.00017989,2]
[398181785,1765422638493,-151.0,0.00017989,2]
[398181787,1765422638502,-151.0,0.00017989,2]
[398181789,1765422638512,-151.0,0.00017989,2]
[398181790,1765422638521,-151.0,0.00017989,2]
[398181791,1765422638530,-151.0,0.00017989,2]
[398181792,1765422638539,-151.0,0.00017989,2]
[398181793,1765422638548,-201.81338537,0.00017989,2]
[398181795,1765422638558,-151.0,0.00017989,2]
[398181797,1765422638567,-151.0,0.00017989,2]
[398181799,1765422638576,-151.0,0.00017989,2]
[398181801,1765422638585,-151.0,0.00017989,2]
[398181802,1765422638595,-210.14200998,0.0001799,2]
[398181804,1765422638604,-151.0,0.00017997,2]
[398181806,1765422638614,-500.0,0.00017999,2]
[398181808,1765422638623,-500.0,0.00017999,2]
[398181810,1765422638632,-500.0,0.00017999,2]
[398181812,1765422638641,-175.97210386,0.00017999,2]
[398181814,1765422638654,-324.02789614,0.00017999,2]
[398181816,1765422638663,-500.0,0.00017999,2]
[398181818,1765422638673,-500.0,0.00017999,2]
[398181820,1765422638682,-500.0,0.00017999,2]
[398181822,1765422638691,-500.0,0.00017999,2]
[398181824,1765422638701,-500.0,0.00017999,2]
[398181826,1765422638710,-198.34966232,0.00017999,2]
[398181828,1765422638722,-289.52252734,0.00017999,2]
[398181830,1765422638732,-1000.0,0.00017999,2]
[398181832,1765422638741,-500.0,0.00017999,2]
[398181835,1765422638752,-191.61679709,0.00017999,2]
[398181836,1765422638761,-150.13229995,0.00017999,2]
[398181838,1765422638771,-152.23894322,0.00017999,2]
[398181841,1765422638781,-150.0,0.00017999,2]
[398181843,1765422638790,-500.0,0.00017999,2]
[398181844,1765422638799,-500.0,0.00017999,2]
[398181846,1765422638808,-500.0,0.00017999,2]
[398181848,1765422638818,-152.31964302,0.00017999,2]
[398181850,1765422638828,-500.0,0.00017999,2]
[398181852,1765422638837,-150.0,0.00017999,2]
[398181853,1765422638847,-500.0,0.00017999,2]
[398181854,1765422638857,-160.2763129,0.00017999,2]
[398181855,1765422638866,-150.60301114,0.00017999,2]
[398181856,1765422638877,-151.22814741,0.00017999,2]
[398181857,1765422638890,-500.0,0.00017999,2]
[398181858,1765422638904,-500.0,0.00017999,2]
[398181859,1765422638914,-7511.6436022,0.00018,2]
[398181860,1765422638965,-29195.2616001,0.00018,2]
[398181861,1765422638982,-352963.25017331,0.00018,2]
[398181871,1765422640233,-1795.794,0.00018,2]
[398181872,1765422640288,-612.4781407,0.00018,2]
[398181873,1765422640397,-2008.48272367,0.00018,2]
[398181874,1765422640410,-1726.00720309,0.00018,2]
[398181875,1765422640422,-4119.45280101,0.00018,2]
[398181880,1765422643351,-422.1963,0.00018,2]
[398181881,1765422643410,-2815.89168515,0.00018,2]
[398181882,1765422643621,-16000.0,0.00018,2]
[398181883,1765422643736,-320.0,0.00018,2]
[398181884,1765422643747,-1692.92874961,0.00018,2]
[398181906,1765422646236,-1181.39263457,0.000179,2]
[398181907,1765422646450,-545.55629248,0.000179,2]
[398181908,1765422646460,-4097.82193739,0.00018,2]
[398181923,1765422669024,250.0,0.000202,30]
[398181927,1765422798723,10000.01,0.00016438,2]
[398181928,1765422798746,1779.19,0.00016438,2]
[398181930,1765422829295,168.22,0.00016712,2]
[398181933,1765422856983,159.63,8.953e-05,2]
[398181934,1765422857201,159.63,0.00011192,2]
[398181935,1765422857429,159.63,0.0001343,2]
[398181936,1765422857644,159.63,0.00015668,2]
[398181938,1765422884654,999.0,0.00017862,3]
[398181941,1765422921160,1010.08670837,0.00025,120]
[398181954,1765423250589,-370.40745782,0.00017099,2]
[398181955,1765423252422,-187.70960934,0.00017099,2]
[398181956,1765423256091,-259.20666219,0.00017099,2]
[398181957,1765423257551,-179.55714289,0.00017099,2]
[398181958,1765423258932,-163.04029542,0.00017099,2]
[398181959,1765423261033,-40.07883234,0.00017099,2]
[398181960,1765423261055,-141.4178673,0.000171,2]
[398181961,1765423263687,-300.0,0.00017099,2]
[398181962,1765423263710,-222.77081734,0.000171,2]
[398181963,1765423265803,-378.89987032,0.000171,2]
[398181964,1765423267401,-363.49245105,0.000171,2]
[398181965,1765423268945,-295.40123121,0.000171,2]
[398181966,1765423271684,-198.01776278,0.000171,2]
[398181967,1765423271705,-31.89798931,0.000171,2]
[398181968,1765423279755,-162.28483468,0.000171,2]
[398181970,1765423281188,-390.08445506,0.000171,2]
[398181971,1765423282771,-303.69408101,0.000171,2]
[398181972,1765423284999,-176.79085859,0.000171,2]
[398181973,1765423286966,-154.96610476,0.000171,2]
[398181974,1765423289104,-212.61039652,0.000171,2]
[398181975,1765423292615,-322.73470344,0.000171,2]
[398181976,1765423298160,-300.0,0.000171,2]
[398181977,1765423299570,-233.0,0.000171,2]
[398181978,1765423302354,-184.44847503,0.000171,2]
[398181979,1765423304365,-331.46073248,0.000171,2]
[398181980,1765423306500,-185.49087857,0.000171,2]
[398181981,1765423308435,-279.82291685,0.000171,2]
[398181982,1765423310382,-253.70563698,0.000171,2]
[398181984,1765423336696,-300.0,0.00017099,2]
[398181985,1765423337018,-6514.08,0.000171,2]
[398181986,1765423337064,-4324.91793672,0.000171,2]
[398181987,1765423337107,-1350.17412656,0.000171,2]
[398181988,1765423337206,-149.82587344,0.000171,2]
[398181989,1765423337238,-150.0,0.00017374,2]
[398181990,1765423337266,-4086.56825312,0.00017375,2]
[398181991,1765423337325,-1227.22174688,0.00017375,2]
[398181992,1765423337371,-500.0,0.0001754,2]
[398181993,1765423337405,-1001.0,0.000178,2]
[398181994,1765423337435,-500.0,0.00017873,2]
[398181995,1765423337466,-178.38369608,0.00017873,2]
[398181996,1765423337494,-2793.614,0.00017873,2]
[398181997,1765423337600,-1969.97307338,0.000179,2]
[398181998,1765423337663,-6060.06385324,0.000179,2]
[398181999,1765423337673,-54.01460784,0.000179,2]
[398182000,1765423337703,-342.52447438,0.000179,2]
[398182001,1765423337736,-159.63,0.00017907,2]
[398182002,1765423337764,-500.0,0.00017973,2]
[398182003,1765423337795,-151.0,0.00017989,2]
[398182004,1765423337824,-151.0,0.00017989,2]